bitfinex-derivatives/quotes_SOLF0:USTF0_20250819
["timestamp","ask_amount","ask_price","bid_price","bid_amount"]
[1755577280656,2.49,178.15,178.05,8.5337]
[1755577281353,2.49,178.19,178.07,2.92]
[1755577281556,3.93370063,178.18,178.07,2.92]
[1755577281759,2.49,178.19,178.07,2.92]
[1755577281760,3.93370063,178.17,178.07,2.92]
[1755577281962,2.49,178.19,178.11,2.92]
[1755577282163,146.46,178.24,178.11,2.92]
[1755577282362,6.43468139,178.23,178.11,2.92]
[1755577282670,3.93468139,178.22,178.11,2.92]
[1755577282867,3.93468139,178.22,178.12,5.6114]
[1755577283263,3.93468139,178.22,178.11,2.92]
[1755577283463,3.93468139,178.22,178.11,8.5317]
[1755577283775,3.93468139,178.22,178.11,2.92]
[1755577283776,2.5,178.21,178.11,2.92]
[1755577283972,3.93468139,178.2,178.11,2.92]
[1755577284178,3.93468139,178.19,178.11,2.92]
[1755577284476,3.93468139,178.18,178.07,2.97]
[1755577284666,2.5,178.21,178.07,2.97]
[1755577284976,3.93266387,178.2,178.08,5.6126]
[1755577285177,3.93266387,178.19,178.07,2.97]
[1755577285377,2.5,178.21,178.07,2.97]
[1755577285578,3.93286565,178.2,178.07,2.97]
[1755577285774,3.93286565,178.19,178.08,5.6126]
[1755577285975,2.5,178.21,178.08,5.6126]
[1755577286276,3.93311094,178.2,178.08,5.6126]
[1755577286469,2.5,178.21,178.09,2.97]
[1755577286668,3.93270874,178.2,178.1,2.97]
[1755577286865,2.5,178.21,178.1,2.97]
[1755577287171,2.5,178.19,178.1,2.97]
[1755577287478,2.5,178.17,178.06,2.97]
[1755577289666,2.5,178.15,178.02,379.75]
[1755577289871,2.5,178.13,178.02,2.97]
[1755577290674,2.5,178.11,178.02,2.97]
[1755577291174,3.92574894,178.1,177.96,2.97]
[1755577291375,2.5,178.09,177.96,2.97]
[1755577294281,2.5,178.09,177.95,7.72178161]
[1755577294477,2.5,178.09,177.96,2.97]
[1755577296477,3.91566843,178.08,177.96,2.97]
[1755577296673,24.58178161,178.11,177.96,2.97]
[1755577296674,2.5,178.07,177.96,2.97]
[1755577297282,2.5,178.07,177.87,7.72178161]
[1755577297283,2.5,178.05,177.91,2.97]
[1755577297483,2.5,178.03,177.91,2.97]
[1755577299082,10.22178161,178.03,177.91,2.97]
[1755577299273,2.5,178.02,177.91,2.97]
[1755577300081,2.5,178.02,177.87,2.97]
[1755577301578,2.5,178.02,177.84,2.97]
[1755577302184,2.5,178.02,177.89,5.6186]
[1755577302484,2.5,178.02,177.9,2.97]
[1755577302987,2.5,178.02,177.86,7.72178161]
[1755577302988,2.5,178.02,177.87,2.97]
[1755577303180,2.5,178.02,177.91,2.97]
[1755577303380,379.8,178.06,177.91,2.97]
[1755577303683,379.8,178.06,177.94,2.97]
[1755577305575,148.9,178.1,177.95,2.97]
[1755577306184,2.5,178.09,177.95,2.97]
[1755577306388,2.5,178.07,177.95,2.97]
[1755577307188,2.5,178.11,177.95,2.97]
[1755577307685,2.5,178.11,177.98,5.6158]
[1755577307889,2.5,178.11,177.99,2.97]
[1755577309584,2.5,178.11,177.99,8.5856]
[1755577310293,2.5,178.11,177.99,2.97]
[1755577311691,394.34,178.16,178.0,2.97]
[1755577311882,6.38969246,178.15,178.0,2.97]
[1755577312078,6.38969246,178.15,177.98,7.72178161]
[1755577312079,2.5,178.15,178.05,2.97]
[1755577313590,146.34,178.17,178.05,2.97]
[1755577313788,146.34,178.17,178.07,5.6129]
[1755577313990,146.34,178.17,178.06,2.96]
[1755577315195,146.34,178.17,178.06,8.5734]
[1755577315392,146.34,178.17,178.06,2.96]
[1755577315782,2.49,178.16,178.06,2.96]
[1755577318502,2.49,178.16,178.03,7.72178161]
[1755577318688,3.90368656,178.15,178.03,10.68178161]
[1755577318994,2.49,178.16,178.04,2.96]
[1755577319187,3.90368182,178.15,178.04,2.96]
[1755577319387,2.49,178.16,178.04,2.96]
[1755577319590,3.90411593,178.15,178.04,2.96]
[1755577319791,2.49,178.16,178.04,2.96]
[1755577319991,3.90410968,178.15,178.04,2.96]
[1755577320195,2.49,178.16,178.04,2.96]
[1755577320598,3.90248761,178.15,178.04,2.96]
[1755577320798,2.49,178.16,178.04,8.5741]
[1755577320996,2.49,178.2,178.05,2.96]
[1755577321189,2.49,178.2,178.08,2.96]
[1755577321895,2.49,178.2,178.08,8.5728]
[1755577322097,2.49,178.2,178.08,2.96]
[1755577322785,2.49,178.2,178.08,8.5727]
[1755577322992,2.49,178.2,178.08,2.96]
[1755577323191,3.90128216,178.19,178.08,2.96]
[1755577323497,2.49,178.2,178.08,2.96]
[1755577324397,2.49,178.2,178.08,8.5729]
[1755577325396,2.49,178.2,178.08,2.96]
[1755577325896,2.49,178.2,178.08,8.5728]
[1755577326695,2.49,178.2,178.05,2.96]
[1755577326897,2.49,178.2,178.09,2.96]
[1755577327396,123.9790051,178.23,178.12,2.96]
[1755577327788,123.9790051,178.23,178.14,5.611]
[1755577327993,123.9790051,178.23,178.15,2.96]
[1755577328599,146.22,178.26,178.15,2.96]
[1755577328800,148.71,178.26,178.15,2.96]
[1755577329303,2.49,178.25,178.15,2.96]
[1755577329802,2.49,178.25,178.09,2.96]
[1755577329803,3.89433083,178.24,178.09,2.96]
[1755577330000,2.49,178.25,178.11,5.6117]
[1755577330198,2.49,178.23,178.12,2.96]
[1755577330698,2.49,178.21,178.08,2.96]
[1755577331298,2.49,178.21,178.12,2.96]
[1755577333601,2.49,178.21,178.08,2.96]
[1755577333794,3.89234994,178.2,178.08,2.96]
[1755577333998,2.49,178.2,178.08,2.96]
[1755577337606,2.49,178.2,178.08,8.5727]
[1755577337800,2.49,178.2,178.09,2.96]
[1755577343707,540.1,178.25,177.96,377.2]
[1755577343708,2.49,178.16,178.02,3.02]
[1755577343911,2.49,178.14,178.02,3.02]
[1755577344409,2.49,178.14,178.03,3.02]
[1755577345014,7.49834377,178.14,178.03,3.02]
[1755577345212,6.39384053,178.13,178.03,3.02]
[1755577345412,2.49,178.13,178.03,3.02]
[1755577347219,3.90963584,178.12,178.03,3.02]
[1755577347416,2.49,178.13,178.03,3.02]
[1755577347616,3.90963569,178.12,178.03,3.02]
[1755577347818,2.49,178.13,178.03,3.02]
[1755577348008,3.909399,178.12,178.03,3.02]
[1755577348216,2.49,178.13,178.03,3.02]
[1755577348418,3.91183941,178.12,178.03,3.02]
[1755577348616,22.75980195,178.18,178.03,3.02]
[1755577348617,153.43834377,178.17,178.03,8.02834377]
[1755577348913,2.49,178.17,178.07,3.02]
[1755577349219,2.49,178.21,178.09,5.00834377]
[1755577349511,11.44622686,178.2,178.13,3.02]
[1755577349713,11.44734556,178.19,178.08,3.02]
[1755577349918,11.44734556,178.18,178.08,3.02]
[1755577350110,11.44734556,178.17,178.08,3.02]
[1755577350416,2.49,178.19,178.08,3.02]
[1755577350609,11.46066931,178.18,178.08,3.02]
[1755577350810,3.92000251,178.17,178.08,3.02]
[1755577351016,2.49,178.19,178.08,3.02]
[1755577351208,3.92025658,178.18,178.08,3.02]
[1755577351407,3.92025658,178.17,178.08,3.02]
[1755577351613,2.49,178.24,178.08,3.02]
[1755577351812,11.46846438,178.23,178.08,3.02]
[1755577352013,11.46846438,178.22,178.13,3.02]
[1755577352216,3.92200498,178.21,178.13,3.02]
[1755577352518,3.92200498,178.2,178.13,3.02]
[1755577352711,2.49,178.24,178.13,3.02]
[1755577352910,3.92329031,178.23,178.13,3.02]
[1755577353220,3.92329031,178.22,178.13,3.02]
[1755577353417,3.92329031,178.21,178.13,3.02]
[1755577353611,3.92329031,178.2,178.13,3.02]
[1755577353811,2.49,178.24,178.13,8.6312]
[1755577354011,3.92578559,178.23,178.13,8.6312]
[1755577354319,3.92578559,178.22,178.13,3.02]
[1755577354622,3.92578559,178.21,178.13,3.02]
[1755577354816,2.49,178.24,178.13,3.02]
[1755577355119,3.92716098,178.23,178.13,8.6312]
[1755577355416,3.92716098,178.22,178.13,8.6312]
[1755577355715,3.92716098,178.21,178.14,5.6108]
[1755577355915,2.49,178.24,178.14,5.6108]
[1755577356118,3.92932233,178.23,178.14,5.6108]
[1755577356315,3.92932233,178.22,178.14,5.6108]
[1755577356513,3.92932233,178.21,178.14,5.6108]
[1755577356715,3.92932233,178.2,178.14,5.6108]
[1755577357012,2.49,178.24,178.14,5.6108]
[1755577357209,3.93537809,178.23,178.14,5.6108]
[1755577357411,3.93537809,178.22,178.14,5.6108]
[1755577357616,3.93537809,178.21,178.14,5.6108]
[1755577357817,3.93537809,178.2,178.13,8.6313]
[1755577358014,2.49,178.24,178.13,8.6313]
[1755577358316,3.93660774,178.23,178.13,3.02]
[1755577358615,3.93660774,178.22,178.13,3.02]
[1755577358817,377.18,178.25,178.13,3.02]
[1755577358818,6.42660774,178.21,178.13,3.02]
[1755577359017,3.93660774,178.2,178.13,3.02]
[1755577359220,2.49,178.21,178.13,3.02]
[1755577359414,3.93588986,178.2,178.13,3.02]
[1755577359612,2.49,178.21,178.13,3.02]
[1755577359915,3.93386233,178.2,178.13,3.02]
[1755577360114,2.49,178.21,178.13,3.02]
[1755577360311,3.93352668,178.2,178.13,3.02]
[1755577360516,2.49,178.21,178.13,3.02]
[1755577360814,3.93383725,178.2,178.13,3.02]
[1755577361019,2.49,178.21,178.13,3.02]
[1755577361627,379.67,178.25,178.13,3.02]
[1755577361932,3.93158856,178.24,178.13,3.02]
[1755577362122,3.93158856,178.23,178.13,3.02]
[1755577362310,3.93158856,178.22,178.14,5.6108]
[1755577362512,379.67,178.25,178.15,3.02]
[1755577362713,3.93124969,178.24,178.15,3.02]
[1755577362910,3.93124969,178.23,178.15,3.02]
[1755577363115,3.93124969,178.22,178.15,3.02]
[1755577363315,3.93034056,178.21,178.11,8.6317]
[1755577363515,3.93034056,178.2,178.11,8.6317]
[1755577363717,3.93034056,178.2,178.11,3.02]
[1755577363922,2.49,178.19,178.07,3.02]
[1755577364223,2.49,178.17,178.07,3.02]
[1755577364416,145.74,178.2,178.07,3.02]
[1755577364617,3.92817082,178.19,178.07,3.02]
[1755577364821,3.92817082,178.18,178.07,3.02]
[1755577365020,145.74,178.2,178.07,3.02]
[1755577365216,3.92901646,178.19,178.07,3.02]
[1755577365422,3.92901646,178.18,178.07,3.02]
[1755577365623,145.74,178.2,178.1,8.6323]
[1755577365824,3.93126833,178.19,178.1,8.6323]
[1755577366026,3.93126833,178.18,178.1,8.6323]
[1755577366223,3.93126833,178.18,178.03,384.88226211]
[1755577366224,145.74,178.2,178.08,3.02]
[1755577366711,379.67,178.25,178.11,7.70226211]
[1755577366912,3.93287694,178.24,178.12,3.02]
[1755577367123,3.93287694,178.23,178.12,3.02]
[1755577367322,3.93287694,178.22,178.12,3.02]
[1755577367515,379.67,178.25,178.12,3.02]
[1755577367823,3.9316322,178.24,178.15,8.6307]
[1755577368023,6.4216322,178.23,178.15,3.02]
[1755577368226,3.93000891,178.22,178.15,3.02]
[1755577368427,2.49,178.23,178.15,3.02]
[1755577368622,3.92974141,178.22,178.15,3.02]
[1755577368924,2.49,178.23,178.15,3.02]
[1755577369118,3.92950559,178.22,178.15,3.02]
[1755577369313,2.49,178.23,178.09,7.70226211]
[1755577369524,2.49,178.21,178.11,3.02]
[1755577369819,2.49,178.19,178.06,3.02]
[1755577370022,3.92926327,178.18,178.06,3.02]
[1755577370225,3.92926327,178.17,178.08,5.6129]
[1755577370418,2.49,178.19,178.06,3.02]
[1755577370623,3.92386504,178.18,178.07,5.6131]
[1755577370925,3.92386504,178.17,178.07,5.6131]
[1755577371219,3.92386504,178.17,178.06,3.02]
[1755577371220,2.49,178.19,178.08,3.02]
[1755577371918,3.92378953,178.18,178.08,3.02]
[1755577372222,3.92378953,178.17,178.08,3.02]
[1755577372427,2.49,178.19,178.08,3.02]
[1755577372719,3.92303791,178.18,178.08,3.02]
[1755577372924,3.92303791,178.17,178.08,3.02]
[1755577373121,2.49,178.19,178.08,3.02]
[1755577373318,3.9217919,178.18,178.08,8.6327]
[1755577373522,3.9217919,178.17,178.08,8.6327]
[1755577373722,531.72970293,178.26,178.08,3.02]
[1755577373723,5.89980195,178.25,178.08,3.02]
[1755577373918,6.40182929,178.24,178.1,2.93]
[1755577374120,3.92182929,178.23,178.1,2.93]
[1755577374424,3.92182929,178.22,178.12,5.6116]
[1755577374623,3.92182929,178.21,178.13,2.93]
[1755577374824,2.48,178.24,178.14,5.6108]
[1755577375125,3.92173497,178.23,178.13,2.93]
[1755577375326,3.92173497,178.22,178.13,2.93]
[1755577375627,3.92173497,178.21,178.13,2.93]
[1755577375825,2.48,178.24,178.13,2.93]
[1755577376015,2.48,178.22,178.13,2.93]
[1755577376218,3.9219796,178.21,178.13,2.93]
[1755577380325,2.48,178.2,178.09,2.93]
[1755577380521,3.9219796,178.19,178.09,2.93]
[1755577380728,3.9219796,178.19,178.11,2.93]
[1755577381435,3.9219796,178.19,178.07,2.93]
[1755577382233,2.48,178.18,178.07,2.93]
[1755577382440,3.9219796,178.17,178.07,2.93]
[1755577382638,2.48,178.16,178.07,2.93]
[1755577382824,2.48,178.14,178.03,2.93]
[1755577383138,2.48,178.12,178.03,2.93]
[1755577383337,3.9219796,178.11,178.03,2.93]
[1755577383630,2.48,178.12,178.03,2.93]
[1755577383836,3.92001261,178.11,178.03,2.93]
[1755577384137,2.48,178.12,178.03,2.93]
[1755577384930,2.48,178.16,178.03,2.93]
[1755577385128,3.91745478,178.15,178.03,2.93]
[1755577385324,3.91745478,178.14,178.03,2.93]
[1755577385530,3.91745478,178.13,178.03,2.93]
[1755577385728,3.91473528,178.12,178.03,2.93]
[1755577385931,2.48,178.12,178.03,2.93]
[1755577386131,2.48,178.12,178.03,8.5444]
[1755577386635,2.48,178.12,178.03,2.93]
[1755577389434,2.48,178.12,178.03,8.5444]
[1755577395535,2.48,178.12,178.03,2.93]
[1755577397341,2.48,178.12,177.99,145.66]
[1755577397532,2.49,178.1,178.0,2.93]
[1755577398638,3.92021638,178.09,177.96,2.93]
[1755577398937,2.49,178.07,177.96,2.93]
[1755577399237,2.49,178.05,177.93,377.16]
[1755577399444,2.49,178.05,177.94,2.93]
[1755577399639,2.49,178.05,177.97,2.93]
[1755577400144,2.49,178.05,177.94,2.93]
[1755577400739,2.49,178.05,177.93,2.93]
[1755577401246,2.49,178.05,177.96,5.6165]
[1755577401546,2.49,178.05,177.97,2.93]
[1755577401940,2.49,178.05,177.93,2.93]
[1755577403542,2.49,178.05,177.93,8.5475]
[1755577403739,2.49,178.05,177.93,2.93]
[1755577405848,2.5,178.03,177.93,2.93]
[1755577406343,2.5,178.03,177.89,5.6188]
[1755577406344,3.93341534,178.02,177.89,2.98]
[1755577406542,2.5,178.03,177.89,2.98]
[1755577406743,24.56226211,178.04,177.89,2.98]
[1755577406744,2.5,178.01,177.89,2.98]
[1755577407347,2.5,177.99,177.85,2.98]
[1755577407539,3.93039176,177.98,177.85,2.98]
[1755577407743,6.43039907,177.97,177.85,2.98]
[1755577407947,2.5,177.96,177.85,2.98]
[1755577408747,10.20226211,177.96,177.85,2.98]
[1755577409054,10.20226211,177.96,177.79,145.38]
[1755577409055,2.5,177.94,177.8,2.98]
[1755577411150,2.5,177.94,177.84,2.98]
[1755577411647,2.5,177.98,177.84,8.6004]
[1755577412450,2.5,177.98,177.82,2.98]
[1755577412852,2.5,177.98,177.83,5.6208]
[1755577413057,2.5,177.96,177.82,2.98]
[1755577413353,2.5,177.96,177.82,8.601]
[1755577413557,2.5,177.96,177.82,2.98]
[1755577413853,3.90815066,177.95,177.82,2.98]
[1755577414054,2.5,177.94,177.82,2.98]
[1755577415970,2.5,177.94,177.82,5.621]
[1755577416164,2.5,177.94,177.83,2.98]
[1755577416370,2.5,177.92,177.75,2.98]
[1755577416666,2.5,177.89,177.75,2.98]
[1755577417362,2.5,177.89,177.79,2.98]
[1755577420470,2.5,177.89,177.75,2.98]
[1755577421269,2.5,177.87,177.75,2.98]
[1755577423271,2.5,177.85,177.75,2.98]
[1755577423966,2.5,177.83,177.71,2.98]
[1755577424569,7.70226211,177.86,177.71,2.98]
[1755577424570,2.5,177.81,177.71,2.98]
[1755577426066,145.36,177.92,177.71,2.98]
[1755577426067,2.5,177.87,177.71,2.98]
[1755577427377,2.5,177.91,177.81,2.98]
[1755577427581,145.36,177.92,177.81,2.98]
[1755577427777,145.36,177.92,177.81,8.6014]
[1755577428076,2.5,177.96,177.82,2.98]
[1755577428974,124.22225684,177.97,177.87,2.98]
[1755577429371,124.22225684,177.97,177.89,5.6187]
[1755577429572,124.22225684,177.97,177.9,2.98]
[1755577430176,2.5,178.04,177.9,2.98]
[1755577430671,2.5,178.04,177.93,2.98]
[1755577431576,2.5,178.04,177.93,8.5976]
[1755577431774,377.84,178.05,177.94,2.98]
[1755577431976,147.82,178.09,177.94,2.98]
[1755577432279,3.91202858,178.08,177.94,2.98]
[1755577432479,147.82,178.09,177.94,2.98]
[1755577432875,147.82,178.09,177.97,5.6163]
[1755577433179,147.82,178.09,177.98,3.2]
[1755577433381,6.41421067,178.08,177.9,7.70226211]
[1755577433582,2.5,178.08,177.91,3.2]
[1755577434679,145.32,178.09,177.93,3.2]
[1755577434680,2.5,178.06,177.93,3.2]
[1755577435074,2.5,178.06,177.93,8.8175]
[1755577435376,2.5,178.06,177.94,3.2]
[1755577436378,2.5,178.06,177.95,5.6169]
[1755577436572,2.5,178.06,177.96,3.2]
[1755577437482,145.32,178.09,177.96,3.2]
[1755577438674,2.5,178.08,177.96,3.2]
[1755577440882,2.5,178.06,177.96,3.2]
[1755577442083,147.82,178.09,177.96,3.2]
[1755577442480,147.82,178.09,177.98,3.2]
[1755577442980,147.82,178.09,177.98,8.816]
[1755577444076,2.5,178.14,178.0,3.2]
[1755577444277,3.9279791,178.13,178.0,3.2]
[1755577444478,2.5,178.14,178.0,3.2]
[1755577445381,3.92726543,178.13,178.0,3.2]
[1755577445582,2.5,178.14,178.0,3.2]
[1755577446081,2.5,178.12,178.0,3.2]
[1755577446479,3.92580865,178.11,178.0,3.2]
[1755577446685,2.5,178.1,177.95,5.6169]
[1755577446873,2.5,178.1,177.96,3.2]
[1755577447479,2.5,178.1,178.0,3.2]
[1755577447677,377.76,178.15,178.0,3.2]
[1755577447876,3.92499534,178.14,178.0,3.2]
[1755577448081,2.5,178.13,178.0,3.2]
[1755577448584,2.5,178.13,178.05,3.2]
[1755577449377,2.5,178.17,178.05,3.2]
[1755577449682,2.5,178.17,178.05,8.8138]
[1755577449983,2.5,178.17,178.05,3.2]
[1755577451983,2.5,178.17,178.05,8.8138]
[1755577452885,2.5,178.17,178.05,3.2]
[1755577453286,2.5,178.17,178.05,8.8138]
[1755577453881,2.5,178.17,178.05,3.2]
[1755577454789,2.5,178.17,178.01,3.2]
[1755577454980,2.5,178.16,178.01,3.2]
[1755577456388,7.70226211,178.13,178.01,3.2]
[1755577456688,2.5,178.12,178.01,3.2]
[1755577458592,16.88,178.12,177.97,3.2]
[1755577458785,6.41597333,178.11,177.97,3.2]
[1755577458995,2.5,178.08,177.92,5.6179]
[1755577459197,2.5,178.08,177.94,3.2]
[1755577459586,2.5,178.08,177.94,8.8172]
[1755577460092,2.5,178.08,177.94,3.2]
[1755577460892,2.5,178.08,177.95,3.2]
[1755577462993,2.5,178.08,177.97,5.6163]
[1755577463190,2.5,178.08,177.98,3.22]
[1755577464793,2.5,178.08,177.94,3.22]
[1755577464990,2.5,178.06,177.94,3.22]
[1755577465693,2.5,178.06,177.98,0.03658351]
[1755577465894,2.5399618,178.02,177.98,0.03658351]
[1755577466297,0.0399618,178.02,177.98,3.25658351]
[1755577466496,0.0399618,178.02,177.98,0.03658351]
[1755577466696,0.0399618,178.02,177.99,3.22]
[1755577466994,0.0399618,178.02,178.0,3.22]
[1755577467396,0.0399618,178.02,178.01,3.22]
[1755577467692,0.0399618,178.02,177.98,0.03658351]
[1755577467895,0.0399618,178.02,177.99,3.22]
[1755577468098,0.0399618,178.02,178.01,3.22]
[1755577468396,144.86,178.09,178.01,3.22]
[1755577469791,144.86,178.09,178.03,0.03709396]
[1755577470396,3.95076249,178.08,178.03,3.25709396]
[1755577470595,144.86,178.09,178.03,3.25709396]
[1755577471000,3.95123682,178.08,178.03,3.25709396]
[1755577471198,3.95123682,178.07,178.03,3.25709396]
[1755577471392,144.86,178.09,178.03,3.25709396]
[1755577471591,2.54,178.07,178.03,0.03709396]
[1755577471897,144.86,178.09,178.03,3.25709396]
[1755577471898,3.9587455,178.06,178.03,3.25709396]
[1755577472095,144.86,178.09,178.03,3.25709396]
[1755577472404,6.96641994,178.08,178.04,3.22]
[1755577472596,3.96584787,178.07,178.04,3.22]
[1755577472900,2.54,178.1,178.04,3.22]
[1755577473094,11.55759392,178.09,178.05,3.22]
[1755577473294,6.96778172,178.08,178.05,3.22]
[1755577473492,3.96637875,178.07,178.03,0.03709396]
[1755577473700,3.96637875,178.06,178.03,3.25709396]
[1755577474000,2.54,178.11,178.03,3.25709396]
[1755577474199,11.57328925,178.1,178.03,3.25709396]
[1755577474386,11.57328925,178.09,178.03,3.25709396]
[1755577474593,2.54,178.11,178.03,3.25709396]
[1755577474594,11.57328925,178.08,178.03,3.25709396]
[1755577474790,11.57328925,178.07,178.03,3.25709396]
[1755577474998,3.97374471,178.06,178.04,3.22]
[1755577475189,3.97374471,178.05,178.03,0.03709396]
[1755577475390,3.97374471,178.04,178.03,0.03709396]
[1755577475591,3.97374471,178.04,178.03,3.25709396]
[1755577476186,3.97374471,178.04,178.03,0.03709396]
[1755577476397,14.12027503,178.04,178.03,0.03709396]
[1755577476587,14.12027503,178.04,177.95,3.22]
[1755577476791,8.57216275,178.03,177.95,3.22]
[1755577477095,11.57784752,178.02,177.95,3.22]
[1755577477297,3.97374471,178.01,177.95,3.22]
[1755577477497,3.97374471,178.0,177.96,3.22]
[1755577477694,2.54,178.04,177.96,3.22]
[1755577477895,11.57894032,178.03,177.96,3.22]
[1755577478198,3.97405763,178.02,177.96,3.22]
[1755577478394,3.97405763,178.01,177.91,3.22]
[1755577478595,2.54,178.07,177.95,5.6168]
[1755577478795,17.47553885,178.06,177.95,3.22]
[1755577478998,14.1157369,178.05,177.95,3.22]
[1755577479196,11.5757369,178.04,177.95,8.8368]
[1755577479390,11.5757369,178.03,177.95,8.8368]
[1755577479601,14.11177119,178.02,177.95,3.22]
[1755577479795,11.57064616,178.01,177.95,3.22]
[1755577479995,3.97293137,178.0,177.91,3.22]
[1755577480295,2.54,178.06,177.91,3.22]
[1755577480499,11.56961183,178.05,177.97,3.22]
[1755577480703,11.56961183,178.04,177.97,3.22]
[1755577480902,3.97076278,178.03,177.97,8.8363]
[1755577481101,3.97076278,178.02,177.97,5.6163]
[1755577481403,3.97076278,178.02,177.9,377.56]
[1755577481404,2.54,178.06,177.99,3.22]
[1755577481599,3.97379389,178.05,177.99,3.22]
[1755577481904,3.97379389,178.04,177.94,3.22]
[1755577482199,3.97379389,178.03,177.94,3.22]
[1755577482403,2.54,178.06,177.94,3.22]
[1755577482604,3.97445848,178.05,177.98,3.22]
[1755577482805,3.97445848,178.04,177.98,3.22]
[1755577483006,6.51445848,178.03,177.98,3.22]
[1755577483300,3.97445848,178.02,177.98,3.22]
[1755577483505,2.54,178.03,177.98,3.22]
[1755577483708,3.97407728,178.02,177.98,3.22]
[1755577484001,2.54,178.03,177.98,3.22]
[1755577484306,3.97356323,178.02,177.98,3.22]
[1755577484508,2.54,178.03,177.98,3.22]
[1755577484705,3.97355976,178.02,177.98,3.22]
[1755577484906,2.54,178.03,177.98,3.22]
[1755577486804,2.54,178.02,177.95,5.6169]
[1755577488003,2.54,178.02,177.94,3.22]
[1755577489505,2.54,178.02,177.94,8.8372]
[1755577489699,2.54,178.06,177.95,3.22]
[1755577489903,3.97225727,178.05,177.97,5.6162]
[1755577490098,2.54,178.11,177.97,7.70226211]
[1755577490305,3.98738248,178.1,177.98,3.22]
[1755577490499,144.66,178.13,178.01,7.70226211]
[1755577490699,3.98734269,178.12,178.02,3.22]
[1755577490915,2.54,178.15,178.02,3.22]
[1755577491100,3.98681256,178.14,178.06,3.22]
[1755577491414,3.98681256,178.13,178.06,3.22]
[1755577491613,2.54,178.15,178.06,3.22]
[1755577491912,3.98664347,178.14,178.06,3.22]
[1755577492112,3.98664347,178.13,178.06,3.22]
[1755577492313,2.54,178.15,178.06,3.22]
[1755577492515,3.98614922,178.14,178.06,8.8333]
[1755577492716,2.54,178.15,178.06,8.8333]
[1755577492907,3.98614785,178.14,178.06,8.8333]
[1755577493114,144.66,178.19,178.07,5.6131]
[1755577493412,3.98560612,178.18,178.08,3.17]
[1755577493612,3.98560612,178.17,178.08,3.17]
[1755577493917,3.98560612,178.16,178.08,3.17]
[1755577494116,3.98560612,178.15,178.08,3.17]
[1755577494311,147.19,178.19,178.08,3.17]
[1755577494504,3.98581943,178.18,178.08,3.17]
[1755577494709,3.98581943,178.17,178.08,3.17]
[1755577495009,3.98581943,178.16,178.08,3.17]
[1755577496618,2.53,178.17,178.08,3.17]
[1755577496820,3.98599002,178.16,178.08,3.17]
[1755577497013,3.98600405,178.15,178.08,3.17]
[1755577497213,2.53,178.17,178.08,3.17]